fUSD/lending_fUSD_20241106
["ID","MTS","AMOUNT","RATE_DAILY","PERIOD"]
[341430448,1730878279460,-151.0,0.00037999,7]
[341430449,1730878279469,-276.197436,0.00037999,7]
[341430450,1730878279479,-500.0,0.00037999,14]
[341430451,1730878279490,-431.99984554,0.00037999,14]
[341430452,1730878279502,-68.00015446,0.00037999,14]
[341430453,1730878279511,-296.19984554,0.00037999,14]
[341430454,1730878279523,-203.80015446,0.00037999,14]
[341430455,1730878279532,-71.62984554,0.00037999,14]
[341430456,1730878279546,-428.37015446,0.00037999,14]
[341430457,1730878279556,-240.78,0.00037999,14]
[341430458,1730878279565,-323.80169509,0.00037999,14]
[341430459,1730878279575,-270.167679,0.00037999,7]
[341430460,1730878279584,-151.0,0.00037999,7]
[341430461,1730878279593,-270.167679,0.00037999,7]
[341430462,1730878279603,-500.0,0.00037999,14]
[341430463,1730878279612,-170.73,0.00037999,14]
[341430464,1730878279621,-588.59,0.00037999,14]
[341430465,1730878279630,-500.0,0.00037999,14]
[341430466,1730878279639,-270.72,0.00037999,14]
[341430467,1730878279648,-500.0,0.00037999,14]
[341430468,1730878279658,-500.0,0.00037999,14]
[341430469,1730878279667,-500.0,0.00037999,14]
[341430470,1730878279677,-500.0,0.00037999,14]
[341430471,1730878279686,-151.0,0.00037999,7]
[341430472,1730878279695,-500.0,0.00037999,14]
[341430473,1730878279706,-500.0,0.00037999,14]
[341430474,1730878279715,-500.0,0.00037999,14]
[341430475,1730878279725,-500.0,0.00037999,14]
[341430476,1730878279734,-500.0,0.00037999,14]
[341430477,1730878279743,-500.0,0.00037999,14]
[341430478,1730878279753,-265.9,0.00037999,14]
[341430479,1730878279762,-774.332377,0.00037999,7]
[341430480,1730878279771,-774.332377,0.00037999,7]
[341430481,1730878279780,-554.14,0.00037999,14]
[341430482,1730878279789,-500.0,0.00037999,14]
[341430483,1730878279799,-500.0,0.00037999,14]
[341430484,1730878279809,-500.0,0.00037999,14]
[341430485,1730878279819,-250.63685468,0.00037999,14]
[341430486,1730878279829,-500.0,0.00037999,14]
[341430487,1730878279838,-500.0,0.00037999,14]
[341430488,1730878279848,-500.0,0.00037999,14]
[341430489,1730878279858,-500.0,0.00037999,14]
[341430490,1730878279868,-500.0,0.00037999,14]
[341430491,1730878279878,-228.32,0.00037999,14]
[341430492,1730878279888,-500.0,0.00037999,14]
[341430493,1730878279898,-500.0,0.00037999,14]
[341430494,1730878279907,-500.0,0.00037999,14]
[341430495,1730878279917,-358.20306326,0.00037999,14]
[341430496,1730878279926,-151.0,0.00037999,7]
[341430497,1730878279936,-26152.27078627,0.00038,15]
[341430498,1730878279948,-1076.27287124,0.00038,15]
[341430499,1730878279964,-355.95850978,0.00038,15]
[341430500,1730878279975,-403.7229,0.00038,15]
[341430501,1730878279987,-3570.88839064,0.00038,15]
[341430502,1730878279998,-3204.03793356,0.00038,15]
[341430503,1730878280014,-741.5408,0.00038,15]
[341430522,1730878838157,-400.31735983,0.00043208,120]
[341430523,1730878838196,-477.6353,0.00043208,30]
[341430524,1730878838237,-3000.0,0.00043208,120]
[341430525,1730878838276,-797.0,0.00043208,30]
[341430526,1730878838315,-196.0,0.00043208,30]
[341430527,1730878838350,-1020.99466422,0.00043208,120]
[341430528,1730878838388,-3513.7992909,0.00043208,30]
[341430529,1730878838434,-990.92700248,0.00043208,90]
[341430530,1730878838474,-5211.14995364,0.00043208,30]
[341430531,1730878838511,-6917.72292806,0.00043208,30]
[341430532,1730878838551,-107284.10055423,0.00043208,30]
[341430533,1730878838589,-676942.64928812,0.00043208,30]
[341430534,1730878838632,-2000.0,0.00043208,90]
[341430535,1730878838680,-815403.62045194,0.00043208,120]
[341430536,1730878838722,-318.96919483,0.00043208,120]
[341430537,1730878838759,-4222.43708592,0.00043208,120]
[341430538,1730878838803,-2027.26058778,0.00043208,120]
[341430539,1730878838841,-333.97244759,0.00043208,120]
[341430540,1730878838877,-11981.50920127,0.00043208,120]
[341430541,1730878838912,-489.88240243,0.00043208,120]
[341430542,1730878838952,-176.39297605,0.00043208,120]
[341430543,1730878838991,-3656.9159282,0.00043208,30]
[341430544,1730878839028,-12463.34992989,0.00043208,120]
[341430545,1730878839067,-9467.02872036,0.00043208,120]
[341430546,1730878839106,-3055.03463354,0.00043208,120]
[341430547,1730878839143,-1477.91044443,0.00043208,30]
[341430548,1730878839185,-2766.52074146,0.00043208,120]
[341430549,1730878839225,-324.74096717,0.00043208,120]
[341430550,1730878839492,-407.71331688,0.00043208,30]
[341430551,1730878839535,-1050.04731792,0.00043208,30]
[341430552,1730878839575,-321624.39731086,0.00043208,120]
[341430553,1730878841774,150.0,0.000165,3]
[341430554,1730878852872,-12314.60268914,0.00043208,120]
[341430555,1730878852896,-672.9068363,0.00043208,120]
[341430556,1730878852921,-12833.2583855,0.00043208,120]
[341430557,1730878852945,-657.0,0.00043208,120]
[341430558,1730878852967,-10553.0,0.00043208,120]
[341430559,1730878852990,-9435.56938798,0.00043208,30]
[341430560,1730878853013,-1000.0,0.00043208,30]
[341430561,1730878853036,-1847.77851603,0.00043208,120]
[341430562,1730878853058,-196.0,0.00043208,30]
[341430563,1730878853081,-45500.0,0.00043208,120]
[341430564,1730878853104,-586.0,0.00043208,120]
[341430565,1730878853129,-504.87382145,0.00043208,120]
[341430566,1730878853153,-4975.05582428,0.00043208,30]
[341430567,1730878853181,-196.0,0.00043208,30]
[341430568,1730878853206,-933.40894324,0.00043208,120]
[341430569,1730878853228,-263.07016823,0.00043208,120]
[341430570,1730878853251,-2000.0,0.00043208,30]
[341430571,1730878853273,-7579.69000503,0.00043208,120]
[341430572,1730878853297,-4786.51348228,0.00043208,30]
[341430573,1730878853321,-14202.8625224,0.00043208,30]
[341430574,1730878853345,-349.41512206,0.00043208,30]
[341430575,1730878853368,-31860.2478702,0.00043208,30]
[341430576,1730878853392,-72155.40209128,0.00043208,120]
[341430577,1730878853417,-239.0064382,0.00043208,120]
[341430578,1730878853441,-5071.98666231,0.00043208,120]
[341430579,1730878853464,-9747.99064365,0.00043208,30]
[341430580,1730878853487,-262.0,0.00043208,30]
[341430581,1730878853509,-186.0,0.00043208,30]
[341430582,1730878853531,-499.219822,0.00043208,30]
[341430583,1730878905961,160.02,0.00015342,2]
[341430584,1730879152152,-156.74,0.00016712,2]
[341430585,1730879152172,-258.37866457,0.000298,2]
[341430587,1730879243086,-300.0,0.00019725,2]
[341430588,1730879243109,-212.48061696,0.000299,2]
[341430589,1730879243131,-176.661,0.0003,2]
[341430590,1730879243151,-372.51131867,0.0003,30]
[341430591,1730879250480,0.32301175,0.00033941,120]
[341430597,1730879345143,-127.48868133,0.0003,30]
[341430598,1730879345164,-1351.15601142,0.0003078,2]
[341430599,1730879345183,-172.2,0.00033078,2]
[341430600,1730879345202,-1077.4,0.00033078,2]
[341430601,1730879345222,-1509.64657217,0.00033229,2]
[341430602,1730879345242,-803.1,0.00033229,2]
[341430603,1730879345264,-800.0,0.00033891,2]
[341430604,1730879345283,-520.51,0.00033907,4]
[341430605,1730879345302,-771.71,0.00033915,2]
[341430606,1730879345321,-200.0,0.00033916,2]
[341430607,1730879345340,-568.68,0.00033916,2]
[341430608,1730879345360,-249.67698825,0.00033941,120]
[341430609,1730879345379,-6435.66,0.00033996,2]
[341430610,1730879345398,-51856.5780681,0.00034,2]
[341430611,1730879345417,-500.0,0.00034062,2]
[341430612,1730879345438,-250.0,0.00034067,2]
[341430613,1730879345460,-534.85,0.00034139,2]
[341430614,1730879345480,-425.81,0.0003414,2]
[341430615,1730879353706,33671.95,0.00034216,2]
[341430616,1730879360703,762.94,0.00033023,2]
[341430651,1730879432787,-212.48061696,0.00034679,2]
[341430652,1730879432799,-33671.95,0.00034766,2]
[341430653,1730879432809,-155.32,0.00034779,2]
[341430654,1730879432819,-324.00143587,0.00034833,5]
[341430655,1730879432828,-23900.0,0.00034844,2]
[341430656,1730879432838,-604.80410959,0.00034879,2]
[341430657,1730879432847,-250.0,0.00034941,2]
[341430659,1730879432857,-200.0,0.00034941,7]
[341430660,1730879432867,-1039.0,0.00035,2]
[341430661,1730879432878,-3785.85,0.00035125,2]
[341430662,1730879432890,-184.27,0.00035144,2]
[341430663,1730879432900,-200.0,0.00035204,2]
[341430664,1730879432910,-762.94,0.00035287,2]
[341430665,1730879432920,-33671.95,0.00035316,2]
[341430667,1730879432930,-325.25,0.00035344,120]
[341430669,1730879432941,-430.56,0.00035413,10]
[341430671,1730879432950,-363.2,0.00035423,10]
[341430673,1730879432959,-516.67,0.00035423,10]
[341430675,1730879432969,-620.0,0.00035433,10]
[341430677,1730879432978,-164.879,0.00035443,42]
[341430679,1730879432987,-761.222,0.00035443,42]
[341430681,1730879432996,-1846.90631416,0.0003553,15]
[341430683,1730879433006,-598.87328536,0.00035541,5]
[341430685,1730879433015,-568.68,0.00035611,2]
[341430687,1730879433025,-166.084,0.0003563,30]
[341430689,1730879433034,-1846.90631412,0.00035793,15]
[341430690,1730879433043,-33671.95,0.00035865,2]
[341430691,1730879433053,-18724.1605,0.000359,2]
[341430692,1730879433062,-604.80410957,0.00035945,2]
[341430693,1730879433073,-1846.90631412,0.00036057,15]
[341430694,1730879433083,-153.9224995,0.00036104,2]
[341430695,1730879433092,-2891.86013148,0.00036104,2]
[341430696,1730879433104,-735.05928,0.00036104,2]
[341430697,1730879433115,-55.38708146,0.00036104,2]
[341430698,1730879433125,-166.54,0.00036127,120]
[341430699,1730879433133,-475.88291854,0.0003632,15]
[341430700,1730879433143,-334.79012144,0.0003632,15]
[341430701,1730879433154,-1036.23327414,0.0003632,15]
[341430702,1730879433163,-500.0,0.000364,2]
[341430703,1730879433172,-1568.24735691,0.00036415,2]
[341430704,1730879433183,-324.62118462,0.00036415,2]
[341430705,1730879433195,-7355.25096616,0.00036415,2]
[341430706,1730879433206,-8846.33137746,0.00036415,2]
[341430707,1730879433221,-10732.21739669,0.00036415,2]
[341430708,1730879433233,-4845.28171816,0.00036415,2]
[341430709,1730879433243,-166.467,0.0003658,30]
[341430710,1730879433253,-1846.90631412,0.00036583,15]
[341430711,1730879433263,-698.42,0.000368,2]
[341430712,1730879433273,-1846.90631412,0.00036847,15]
[341430713,1730879433283,-400.43823822,0.00036873,5]
[341430714,1730879433293,-329.4921,0.000369,2]
[341430715,1730879433303,-100000.0,0.000369,2]
[341430716,1730879433312,-25817.37630253,0.00036965,2]
[341430717,1730879433325,-1794.848539,0.00036965,2]
[341430718,1730879433894,-6059.72515847,0.00036965,2]
[341430719,1730879433904,-150.0,0.00036986,2]
[341430720,1730879433914,-150.0,0.00036986,2]
[341430721,1730879433923,-604.80410957,0.0003701,2]
[341430722,1730879433932,-500.0,0.00037029,15]
[341430723,1730879433941,-423.71537951,0.00037029,15]
[341430724,1730879433953,-113.78977817,0.00037029,15]
[341430725,1730879433962,-500.0,0.00037029,15]
[341430726,1730879433972,-500.0,0.00037029,15]
[341430727,1730879433982,-500.0,0.00037029,15]
[341430728,1730879433991,-500.0,0.00037029,15]
[341430729,1730879434001,-500.0,0.00037029,15]
[341430730,1730879434010,-500.0,0.00037029,15]
[341430731,1730879434019,-447.60003494,0.00037029,15]
[341430732,1730879434029,-11134.32698689,0.0003703,2]
[341430733,1730879434040,-657.4833942,0.0003703,2]
[341430734,1730879434051,-9479.75320389,0.0003703,2]
[341430735,1730879434063,-5154.97341306,0.0003703,2]
[341430747,1730879438384,-176.06022355,0.00036865,2]
[341430748,1730879438393,-2025.45977645,0.0003703,2]
[341430749,1730879438621,-46.12429616,0.0003703,2]
[341430750,1730879438634,-80709.60271404,0.0003703,2]
[341430751,1730879438645,-26261.00273861,0.0003703,2]
[341430752,1730879438656,-13828.15910871,0.0003703,2]
[341430753,1730879438700,-2778.20639833,0.0003703,2]
[341430754,1730879438711,-2196.0,0.0003703,2]
[341430755,1730879438727,-7455.1752373,0.0003703,2]
[341430756,1730879438738,-553.91500937,0.0003703,2]
[341430757,1730879438749,-1869.41722677,0.0003703,2]
[341430758,1730879438760,-1725.164225,0.0003703,2]
[341430760,1730879438899,-519.02,0.0003703,2]
[341430897,1730879440581,-597.67077122,0.0003703,2]
[341430899,1730879440590,-1806.24307611,0.0003711,15]
[341430901,1730879440603,-40.66323801,0.0003711,15]
[341430903,1730879440612,-568.68,0.00037307,2]
[341430905,1730879440621,-2159.0,0.00037366,3]
[341430907,1730879440631,-1846.90631412,0.00037373,15]
[341430909,1730879440640,-184.27,0.00037487,2]
[341430911,1730879440649,-2544.58044787,0.00037515,2]
[341430913,1730879440660,-471.6489745,0.00037515,2]
[341430915,1730879440671,-30655.72057763,0.00037515,2]
[341430917,1730879440681,-762.94,0.00037551,2]
[341430919,1730879440690,-2918.00014108,0.00037616,2]
[341430921,1730879440699,-200.0,0.0003763,2]
[341430923,1730879440708,-200.0,0.00037633,2]
[341430925,1730879440718,-2918.00014108,0.00037634,2]
[341430927,1730879440727,-1846.90631412,0.00037637,15]
[341430929,1730879440737,-16296.97437301,0.00037637,2]
[341430931,1730879440746,-89630.1397161,0.0003764,2]
[341430933,1730879440755,-16296.97437301,0.00037644,2]
[341430934,1730879440764,-162754.76768222,0.00037644,2]
[341430937,1730879440775,-80569.7502684,0.00037644,2]
[341430939,1730879440787,-1346.25405881,0.00037644,2]
[341430941,1730879440798,-528.55,0.00037644,2]
[341430943,1730879440813,-5562.5,0.00037644,2]
[341430945,1730879440827,-940.35933808,0.00037644,2]
[341430948,1730879440842,-2270.0,0.00037644,2]
[341430950,1730879440855,-7353.45,0.00037644,2]
[341430952,1730879440866,-400.07483383,0.00037644,2]
[341430954,1730879440878,-428.79321821,0.00037644,2]
[341430956,1730879440891,-4555.12487777,0.00037644,2]
[341430960,1730879440916,-463.75,0.00037644,2]
[341430962,1730879440927,-2223.52648865,0.00037644,2]
[341430964,1730879440939,-6301.9999045,0.00037644,2]
[341430966,1730879440950,-42374.02473407,0.00037644,2]
[341430968,1730879440959,-6744.0504761,0.00037646,2]
[341431121,1730879443478,-1269.214557,0.00037646,2]
[341431123,1730879443490,-735.33273,0.00037646,2]
[341431127,1730879443548,-80881.541953,0.00037646,2]
[341431128,1730879443562,-10241.5302136,0.00037652,2]
[341431129,1730879443572,-2390.15349598,0.00037657,2]
[341431130,1730879443582,-89630.1397161,0.00037663,2]
[341431131,1730879443592,-356.18554043,0.00037674,2]
[341431132,1730879443602,-10241.5302136,0.00037675,2]
[341431133,1730879443611,-16296.97437301,0.00037679,2]
[341431134,1730879443621,-2918.00014108,0.00037687,2]
[341431135,1730879443631,-318072.92540454,0.00037687,2]
[341431136,1730879443641,-318072.92540454,0.00037692,2]
[341431137,1730879443651,-1000.0,0.000377,7]
[341431138,1730879443661,-10241.5302136,0.000377,2]
[341431139,1730879443670,-216.8435629,0.00037708,12]
[341431140,1730879443680,-10241.5302136,0.00037727,2]
[341431141,1730879443689,-318072.92540454,0.00037734,2]
[341431142,1730879443699,-318072.92540454,0.00037734,2]
[341431143,1730879443708,-200.0,0.00037741,2]
[341431144,1730879443717,-356.18554043,0.00037741,2]
[341431145,1730879443727,-356.18554043,0.00037744,2]
[341431146,1730879443736,-10241.5302136,0.00037749,2]
[341431147,1730879443746,-2390.15349598,0.00037754,2]
[341431148,1730879443755,-2390.15349598,0.00037755,2]
[341431149,1730879443765,-89630.1397161,0.00037767,2]
[341431150,1730879443775,-356.18554043,0.00037769,2]
[341431151,1730879443784,-16296.97437301,0.00037772,2]
[341431152,1730879443793,-16296.97437301,0.00037778,2]
[341431153,1730879443807,-2390.15349598,0.00037781,2]
[341431154,1730879443816,-356.18554043,0.00037792,2]
[341431161,1730879444056,-2918.00014108,0.00037794,2]
[341431163,1730879444181,-89630.1397161,0.00037795,2]
[341431165,1730879444270,-2390.15349598,0.00037796,2]
[341431167,1730879444351,-2918.00014108,0.00037797,2]
[341431168,1730879444410,-358.8,0.00037798,10]
[341431170,1730879444522,-598.06,0.00037808,14]
[341431171,1730879444617,-500.0,0.00037808,14]
[341431172,1730879444738,-500.0,0.00037808,14]
[341431173,1730879444831,-500.0,0.00037808,14]
[341431176,1730879444862,-500.0,0.00037808,14]
[341431178,1730879444873,-500.0,0.00037808,14]
[341431180,1730879444883,-512.68595581,0.00037808,14]
[341431182,1730879444896,-500.0,0.00037808,14]
[341431184,1730879444905,-500.0,0.00037808,14]
[341431186,1730879444915,-268.46880935,0.00037808,14]
[341431188,1730879444925,-538.22,0.00037808,14]
[341431189,1730879444934,-500.0,0.00037808,14]
[341431191,1730879444944,-500.0,0.00037808,14]
[341431193,1730879444954,-500.0,0.00037808,14]
[341431195,1730879444964,-500.0,0.00037808,14]
[341431197,1730879444974,-500.0,0.00037808,14]
[341431199,1730879444984,-592.5811945,0.00037808,14]
[341431201,1730879444994,-500.0,0.00037808,14]
[341431204,1730879445004,-500.0,0.00037808,14]
[341431205,1730879445013,-500.0,0.00037808,14]
[341431207,1730879445023,-301.52506695,0.00037808,14]
[341431209,1730879445033,-500.0,0.00037808,14]
[341431211,1730879445043,-500.0,0.00037808,14]
[341431214,1730879445053,-500.0,0.00037808,14]
[341431216,1730879445063,-500.0,0.00037808,14]
[341431218,1730879445076,-500.0,0.00037808,14]
[341431220,1730879445086,-500.0,0.00037808,14]
[341431222,1730879445096,-500.0,0.00037808,14]
[341431224,1730879445106,-500.0,0.00037808,14]
[341431226,1730879445115,-500.0,0.00037808,14]
[341431228,1730879445124,-500.0,0.00037808,14]
[341431230,1730879445134,-500.0,0.00037808,14]
[341431231,1730879445143,-500.0,0.00037808,14]
[341431233,1730879445153,-500.0,0.00037808,14]
[341431235,1730879445163,-500.0,0.00037808,14]
[341431237,1730879445172,-500.0,0.00037808,14]
[341431239,1730879445181,-632.95651695,0.00037808,14]
[341431241,1730879445191,-500.0,0.00037808,14]
[341431243,1730879445200,-500.0,0.00037808,14]
[341431245,1730879445209,-500.0,0.00037808,14]
[341431247,1730879445218,-500.0,0.00037808,14]
[341431249,1730879445228,-500.0,0.00037808,14]
[341431251,1730879445238,-500.0,0.00037808,14]
[341431253,1730879445248,-500.0,0.00037808,14]
[341431255,1730879445260,-500.0,0.00037808,14]
[341431257,1730879445270,-500.0,0.00037808,14]
[341431259,1730879445279,-515.48263947,0.00037808,14]
[341431260,1730879445288,-500.0,0.00037808,14]
[341431261,1730879445298,-500.0,0.00037808,14]
[341431262,1730879445309,-500.0,0.00037808,14]
[341431263,1730879445318,-500.0,0.00037808,14]
[341431264,1730879445330,-500.0,0.00037808,14]
[341431265,1730879445340,-500.0,0.00037808,14]
[341431266,1730879445350,-500.0,0.00037808,14]
[341431267,1730879445360,-500.0,0.00037808,14]
[341431268,1730879445370,-500.0,0.00037808,14]
[341431269,1730879445381,-518.21,0.00037808,14]
[341431270,1730879445391,-500.0,0.00037808,14]
[341431272,1730879445401,-500.0,0.00037808,14]
[341431274,1730879445412,-500.0,0.00037808,14]
[341431276,1730879445422,-500.0,0.00037808,14]
[341431278,1730879445432,-500.0,0.00037808,14]
[341431280,1730879445443,-500.0,0.00037808,14]
[341431282,1730879445453,-581.82,0.00037808,14]
[341431284,1730879445463,-500.0,0.00037808,14]
[341431286,1730879445473,-500.0,0.00037808,14]
[341431288,1730879445483,-500.0,0.00037808,14]
[341431290,1730879445494,-500.0,0.00037808,14]
[341431292,1730879445505,-500.0,0.00037808,14]
[341431294,1730879445515,-334.25143112,0.00037808,14]
[341431296,1730879445525,-500.0,0.00037808,14]
[341431298,1730879445535,-500.0,0.00037808,14]
[341431300,1730879445545,-500.0,0.00037808,14]
[341431302,1730879445554,-500.0,0.00037808,14]
[341431304,1730879445564,-500.0,0.00037808,14]
[341431306,1730879445576,-500.0,0.00037808,14]
[341431308,1730879445586,-500.0,0.00037808,14]
[341431310,1730879445596,-500.0,0.00037808,14]
[341431312,1730879445606,-557.71,0.00037808,14]
[341431314,1730879445615,-500.0,0.00037808,14]
[341431316,1730879445625,-500.0,0.00037808,14]
[341431318,1730879445635,-500.0,0.00037808,14]
[341431320,1730879445646,-500.0,0.00037808,14]
[341431322,1730879445656,-500.0,0.00037808,14]
[341431324,1730879445666,-500.0,0.00037808,14]
[341431326,1730879445676,-500.0,0.00037808,14]
[341431328,1730879445686,-500.0,0.00037808,14]
[341431330,1730879445696,-500.0,0.00037808,14]
[341431332,1730879445706,-500.0,0.00037808,14]
[341431334,1730879445715,-500.0,0.00037808,14]
[341431336,1730879445725,-500.0,0.00037808,14]
[341431338,1730879445735,-505.57774384,0.00037808,14]
[341431340,1730879445744,-500.0,0.00037808,14]
[341431342,1730879445754,-500.0,0.00037808,14]
[341431343,1730879445763,-500.0,0.00037808,14]
[341431345,1730879445773,-500.0,0.00037808,14]
[341431347,1730879445782,-500.0,0.00037808,14]
[341431349,1730879445791,-500.0,0.00037808,14]
[341431350,1730879445800,-500.0,0.00037808,14]
[341431352,1730879445813,-500.0,0.00037808,14]
[341431354,1730879445822,-500.0,0.00037808,14]
[341431356,1730879445833,-184.8946679,0.00037808,14]
[341431357,1730879445843,-500.0,0.00037808,14]
[341431359,1730879445852,-500.0,0.00037808,14]
[341431361,1730879445862,-526.25621627,0.00037808,14]
[341431363,1730879445872,-500.0,0.00037808,14]
[341431365,1730879445882,-500.0,0.00037808,14]
[341431367,1730879445892,-558.42,0.00037808,14]
[341431369,1730879445901,-500.0,0.00037808,14]
[341431371,1730879445914,-500.0,0.00037808,14]
[341431373,1730879445923,-500.0,0.00037808,14]
[341431375,1730879445933,-500.0,0.00037808,14]
[341431377,1730879445942,-527.52902379,0.00037808,14]
[341431379,1730879445952,-438.93834294,0.00037808,14]
[341431380,1730879445961,-500.0,0.00037808,14]
[341431382,1730879445970,-500.0,0.00037808,14]
[341431384,1730879445979,-500.0,0.00037808,14]
[341431386,1730879445989,-500.0,0.00037808,14]
[341431388,1730879445998,-500.0,0.00037808,14]
[341431390,1730879446007,-500.0,0.00037808,14]
[341431392,1730879446016,-500.0,0.00037808,14]
[341431393,1730879446025,-641.17,0.00037808,14]
[341431395,1730879446035,-500.0,0.00037808,14]
[341431397,1730879446044,-500.0,0.00037808,14]
[341431399,1730879446055,-500.0,0.00037808,14]
[341431402,1730879446067,-280.25638171,0.00037808,14]
[341431403,1730879446079,-500.0,0.00037808,14]
[341431405,1730879446089,-500.0,0.00037808,14]
[341431407,1730879446100,-500.0,0.00037808,14]
[341431410,1730879446110,-500.0,0.00037808,14]
[341431413,1730879446119,-500.0,0.00037808,14]
[341431415,1730879446128,-500.0,0.00037808,14]
[341431417,1730879446137,-500.0,0.00037808,14]
[341431418,1730879446146,-522.56,0.00037808,14]
[341431420,1730879446156,-500.0,0.00037808,14]
[341431422,1730879446166,-500.0,0.00037808,14]
[341431424,1730879446175,-500.0,0.00037808,14]
[341431426,1730879446185,-500.0,0.00037808,14]
[341431429,1730879446197,-500.0,0.00037808,14]
[341431432,1730879446207,-500.0,0.00037808,14]
[341431434,1730879446218,-500.0,0.00037808,14]
[341431436,1730879446228,-500.0,0.00037808,14]
[341431438,1730879446237,-500.0,0.00037808,14]
[341431440,1730879446247,-555.95272133,0.00037808,14]
[341431442,1730879446257,-500.0,0.00037808,14]
[341431444,1730879446267,-500.0,0.00037808,14]
[341431446,1730879446281,-500.0,0.00037808,14]
[341431448,1730879446292,-350.37486718,0.00037808,14]
[341431451,1730879446302,-500.0,0.00037808,14]
[341431453,1730879446312,-329.05640094,0.00037808,14]
[341431455,1730879446326,-500.0,0.00037808,14]
[341431457,1730879446336,-500.0,0.00037808,14]
[341431459,1730879446345,-500.0,0.00037808,14]
[341431461,1730879446356,-500.0,0.00037808,14]
[341431463,1730879446367,-500.0,0.00037808,14]
[341431465,1730879446377,-500.0,0.00037808,14]
[341431466,1730879446388,-500.0,0.00037808,14]
[341431468,1730879446399,-500.0,0.00037808,14]
[341431470,1730879446409,-269.11070614,0.00037808,14]
[341431472,1730879446417,-500.0,0.00037808,14]
[341431475,1730879446425,-500.0,0.00037808,14]
[341431478,1730879446435,-500.0,0.00037808,14]
[341431479,1730879446446,-632.25,0.00037808,14]
[341431481,1730879446455,-500.0,0.00037808,14]
[341431483,1730879446466,-500.0,0.00037808,14]
[341431485,1730879446476,-500.0,0.00037808,14]
[341431487,1730879446487,-500.0,0.00037808,14]
[341431489,1730879446497,-500.0,0.00037808,14]
[341431491,1730879446507,-483.79831055,0.00037808,14]
[341431493,1730879446517,-500.0,0.00037808,14]
[341431495,1730879446530,-500.0,0.00037808,14]
[341431497,1730879446540,-500.0,0.00037808,14]
[341431499,1730879446550,-500.0,0.00037808,14]
[341431501,1730879446562,-500.0,0.00037808,14]
[341431503,1730879446572,-500.0,0.00037808,14]
[341431505,1730879446584,-500.0,0.00037808,14]
[341431507,1730879446595,-500.0,0.00037808,14]
[341431509,1730879446605,-500.0,0.00037808,14]
[341431511,1730879446615,-540.73,0.00037808,14]
[341431513,1730879446625,-500.0,0.00037808,14]
[341431515,1730879446635,-512.8,0.00037808,14]
[341431517,1730879446645,-500.0,0.00037808,14]
[341431519,1730879446655,-500.0,0.00037808,14]
[341431521,1730879446665,-500.0,0.00037808,14]
[341431523,1730879446676,-500.0,0.00037808,14]
[341431525,1730879446687,-500.0,0.00037808,14]
[341431527,1730879446697,-500.0,0.00037808,14]
[341431529,1730879446708,-500.0,0.00037808,14]
[341431531,1730879446720,-500.0,0.00037808,14]
[341431533,1730879446731,-597.05,0.00037808,14]
[341431536,1730879446742,-500.0,0.00037808,14]
[341431538,1730879446753,-500.0,0.00037808,14]
[341431540,1730879446764,-500.0,0.00037808,14]
[341431542,1730879446774,-500.0,0.00037808,14]
[341431544,1730879446785,-500.0,0.00037808,14]
[341431546,1730879446795,-500.0,0.00037808,14]
[341431547,1730879446807,-500.0,0.00037808,14]
[341431549,1730879446818,-500.0,0.00037808,14]
[341431551,1730879446830,-500.0,0.00037808,14]
[341431553,1730879446842,-325.09,0.00037808,14]